fUSD/lending_fUSD_20250606
["ID","MTS","AMOUNT","RATE_DAILY","PERIOD"]
[364811362,1749249045592,-161.01590372,0.00027454,2]
[364811363,1749249045602,-796.33,0.00027462,2]
[364811364,1749249045611,-796.33,0.00027462,2]
[364811365,1749249045620,-460.94,0.00027462,2]
[364811366,1749249045630,-460.94,0.00027462,2]
[364811367,1749249045639,-1076.26864143,0.000275,2]
[364811368,1749249045648,-796.33,0.00027501,2]
[364811369,1749249045657,-162.96,0.00027511,2]
[364811370,1749249045666,-150.0,0.00027533,2]
[364811371,1749249045675,-441.0,0.00027534,2]
[364811372,1749249045684,-4000.0,0.00027539,4]
[364811373,1749249045694,-300.0,0.00027553,10]
[364811374,1749249045703,-300.0,0.00027553,10]
[364811375,1749249045713,-500.0,0.00027553,5]
[364811376,1749249045722,-500.0,0.00027553,5]
[364811377,1749249045732,-500.0,0.00027553,5]
[364811378,1749249045741,-500.0,0.00027553,5]
[364811379,1749249045821,-500.0,0.00027553,5]
[364811380,1749249045831,-500.0,0.00027553,5]
[364811381,1749249045840,-500.0,0.00027553,5]
[364811382,1749249045849,-500.0,0.00027553,5]
[364811383,1749249045859,-500.0,0.00027553,5]
[364811384,1749249045868,-500.0,0.00027553,5]
[364811385,1749249045877,-500.0,0.00027553,5]
[364811387,1749249045886,-500.0,0.00027553,5]
[364811388,1749249045895,-500.0,0.00027553,5]
[364811389,1749249045904,-500.0,0.00027553,5]
[364811390,1749249045914,-500.0,0.00027553,5]
[364811391,1749249045923,-500.0,0.00027553,5]
[364811392,1749249045933,-500.0,0.00027553,5]
[364811393,1749249045942,-395.50522225,0.00027553,5]
[364811394,1749249045951,-500.0,0.00027553,5]
[364811395,1749249045960,-500.0,0.00027553,5]
[364811396,1749249045970,-500.0,0.00027553,5]
[364811397,1749249045979,-500.0,0.00027553,5]
[364811398,1749249045988,-500.0,0.00027553,5]
[364811399,1749249045998,-500.0,0.00027553,5]
[364811400,1749249046007,-500.0,0.00027553,5]
[364811401,1749249046016,-500.0,0.00027553,5]
[364811402,1749249046026,-500.0,0.00027553,5]
[364811403,1749249046035,-500.0,0.00027553,5]
[364811404,1749249046045,-500.0,0.00027553,5]
[364811405,1749249046054,-500.0,0.00027553,5]
[364811406,1749249046064,-500.0,0.00027553,5]
[364811407,1749249046073,-500.0,0.00027553,5]
[364811408,1749249046083,-500.0,0.00027553,5]
[364811409,1749249046093,-500.0,0.00027553,5]
[364811410,1749249046103,-500.0,0.00027553,5]
[364811411,1749249046112,-500.0,0.00027553,5]
[364811412,1749249046121,-500.0,0.00027553,5]
[364811413,1749249046131,-500.0,0.00027553,5]
[364811414,1749249046140,-500.0,0.00027553,5]
[364811415,1749249046149,-223.77101133,0.00027553,5]
[364811416,1749249046158,-597.24597375,0.00027554,2]
[364811417,1749249046168,-11731.9949006,0.00027554,2]
[364811418,1749249046177,-4074.9505861,0.00027554,2]
[364811419,1749249046186,-201933.6938198,0.00027554,2]
[364811420,1749249046196,-6439.8046869,0.00027554,2]
[364811421,1749249046205,-32485.6922805,0.00027554,2]
[364811422,1749249046215,-11373.4790501,0.00027554,2]
[364811423,1749249046224,-15656.2595544,0.00027554,2]
[364811424,1749249046234,-318.11274148,0.0002756,10]
[364811425,1749249046243,-480.0,0.00027561,5]
[364811426,1749249046252,-480.0,0.00027561,5]
[364811427,1749249046262,-480.0,0.00027561,5]
[364811428,1749249046271,-480.0,0.00027561,5]
[364811429,1749249046280,-1959.661055,0.00027561,5]
[364811430,1749249046290,-480.0,0.00027561,5]
[364811431,1749249046300,-2212.720802,0.00027561,5]
[364811432,1749249046309,-480.0,0.00027561,5]
[364811433,1749249046319,-480.0,0.00027561,5]
[364811434,1749249046329,-480.0,0.00027561,5]
[364811435,1749249046339,-390.65241907,0.00027561,5]
[364811436,1749249046349,-678.27,0.00027561,5]
[364811437,1749249046359,-480.0,0.00027561,5]
[364811438,1749249046370,-480.0,0.00027561,5]
[364811439,1749249046380,-480.0,0.00027561,5]
[364811440,1749249046390,-480.0,0.00027561,5]
[364811441,1749249046399,-480.0,0.00027561,5]
[364811442,1749249046408,-512.9,0.00027561,5]
[364811443,1749249046417,-480.0,0.00027561,5]
[364811444,1749249046427,-480.0,0.00027561,5]
[364811445,1749249046436,-480.0,0.00027561,5]
[364811446,1749249046448,-480.0,0.00027561,5]
[364811447,1749249046457,-480.0,0.00027561,5]
[364811448,1749249046467,-480.0,0.00027561,5]
[364811449,1749249046476,-600.0,0.00027561,30]
[364811450,1749249046485,-529.84,0.00027561,5]
[364811451,1749249046496,-480.0,0.00027561,5]
[364811452,1749249046507,-480.0,0.00027561,5]
[364811453,1749249046516,-480.0,0.00027561,5]
[364811454,1749249046527,-480.0,0.00027561,5]
[364811455,1749249046539,-480.0,0.00027561,5]
[364811456,1749249046548,-606.23,0.00027561,5]
[364811457,1749249046562,-480.0,0.00027561,5]
[364811458,1749249046574,-480.0,0.00027561,5]
[364811459,1749249046583,-677.96,0.00027561,5]
[364811460,1749249046593,-480.0,0.00027561,5]
[364811461,1749249046603,-480.0,0.00027561,5]
[364811462,1749249046612,-480.0,0.00027561,5]
[364811463,1749249046622,-830.71,0.00027561,5]
[364811464,1749249046631,-480.0,0.00027561,5]
[364811465,1749249046640,-480.0,0.00027561,5]
[364811466,1749249046650,-710.66,0.00027561,5]
[364811467,1749249046659,-498.57634273,0.00027561,5]
[364811468,1749249046669,-480.0,0.00027561,5]
[364811469,1749249046678,-480.0,0.00027561,5]
[364811470,1749249046687,-247.793539,0.00027561,5]
[364811471,1749249046697,-480.0,0.00027561,5]
[364811472,1749249046706,-480.0,0.00027561,5]
[364811473,1749249046715,-559.5,0.00027561,5]
[364811474,1749249046725,-480.0,0.00027561,5]
[364811475,1749249046735,-480.0,0.00027561,5]
[364811476,1749249046744,-480.0,0.00027561,5]
[364811477,1749249046754,-480.0,0.00027561,5]
[364811478,1749249046763,-549.49,0.00027561,5]
[364811479,1749249046773,-1076.21,0.00027561,5]
[364811480,1749249046782,-480.0,0.00027561,5]
[364811481,1749249046791,-480.0,0.00027561,5]
[364811482,1749249046802,-480.0,0.00027561,5]
[364811483,1749249046811,-527.39,0.00027561,5]
[364811484,1749249046820,-480.0,0.00027561,5]
[364811485,1749249046829,-480.0,0.00027561,5]
[364811486,1749249046838,-162.384994,0.00027561,5]
[364811487,1749249046847,-555.9,0.00027561,5]
[364811488,1749249046856,-655.43,0.00027561,5]
[364811489,1749249046865,-480.0,0.00027561,5]
[364811490,1749249046875,-1040.33,0.00027561,5]
[364811491,1749249046884,-480.0,0.00027561,5]
[364811492,1749249046893,-480.0,0.00027561,5]
[364811493,1749249046902,-177.574558,0.00027561,5]
[364811494,1749249046911,-480.0,0.00027561,5]
[364811495,1749249046920,-480.0,0.00027561,5]
[364811496,1749249046929,-480.0,0.00027561,5]
[364811497,1749249046938,-480.0,0.00027561,5]
[364811498,1749249046947,-480.0,0.00027561,5]
[364811499,1749249046957,-480.0,0.00027561,5]
[364811500,1749249046967,-556.96,0.00027561,5]
[364811501,1749249046976,-480.0,0.00027561,5]
[364811502,1749249046985,-480.0,0.00027561,5]
[364811503,1749249046995,-499.5,0.00027561,5]
[364811504,1749249047004,-487.68472245,0.00027561,5]
[364811505,1749249047014,-157.91056,0.00027561,5]
[364811506,1749249047023,-539.01,0.00027561,5]
[364811507,1749249047032,-480.0,0.00027561,5]
[364811508,1749249047042,-913.42,0.00027561,5]
[364811509,1749249047052,-573.44,0.00027561,5]
[364811510,1749249047063,-480.0,0.00027561,5]
[364811511,1749249047073,-602.23,0.00027561,5]
[364811512,1749249047082,-553.04,0.00027561,5]
[364811513,1749249047092,-567.5,0.00027561,5]
[364811514,1749249047101,-480.0,0.00027561,5]
[364811515,1749249047111,-480.0,0.00027561,5]
[364811516,1749249047120,-480.0,0.00027561,5]
[364811517,1749249047130,-480.0,0.00027561,5]
[364811518,1749249047140,-502.06,0.00027561,5]
[364811519,1749249047150,-480.0,0.00027561,5]
[364811520,1749249047160,-480.0,0.00027561,5]
[364811521,1749249047170,-480.0,0.00027561,5]
[364811522,1749249047179,-846.78,0.00027561,5]
[364811523,1749249047188,-480.0,0.00027561,5]
[364811524,1749249047197,-480.0,0.00027561,5]
[364811525,1749249047206,-480.0,0.00027561,5]
[364811526,1749249047216,-516.88,0.00027561,5]
[364811527,1749249047225,-703.63,0.00027561,5]
[364811528,1749249047235,-480.0,0.00027561,5]
[364811529,1749249047244,-491.95,0.00027561,5]
[364811530,1749249047253,-1302.12,0.00027561,5]
[364811531,1749249047263,-480.0,0.00027561,5]
[364811532,1749249047272,-480.0,0.00027561,5]
[364811533,1749249047281,-861.895964,0.00027561,5]
[364811534,1749249047293,-480.0,0.00027561,5]
[364811535,1749249047303,-480.0,0.00027561,5]
[364811536,1749249047312,-315.93712966,0.00027561,5]
[364811537,1749249047321,-503.98,0.00027561,5]
[364811538,1749249047331,-480.0,0.00027561,5]
[364811539,1749249047341,-480.0,0.00027561,5]
[364811540,1749249047352,-480.0,0.00027561,5]
[364811541,1749249047361,-533.86480863,0.00027561,2]
[364811542,1749249047370,-41603.54,0.00027561,5]
[364811543,1749249047380,-480.0,0.00027561,5]
[364811544,1749249047390,-1007.79,0.00027561,5]
[364811545,1749249047400,-1425.585735,0.00027561,5]
[364811546,1749249047409,-480.0,0.00027561,5]
[364811547,1749249047419,-2220.64,0.00027561,5]
[364811548,1749249047428,-1000.0,0.00027561,2]
[364811549,1749249047438,-480.0,0.00027561,5]
[364811550,1749249047447,-480.0,0.00027561,5]
[364811551,1749249047456,-1128.96,0.00027561,5]
[364811552,1749249047465,-480.0,0.00027561,5]
[364811553,1749249047474,-5394.96,0.00027561,5]
[364811554,1749249047484,-650.68,0.00027561,5]
[364811555,1749249047494,-480.0,0.00027561,5]
[364811556,1749249047503,-480.0,0.00027561,5]
[364811557,1749249047513,-480.0,0.00027561,5]
[364811558,1749249047523,-480.0,0.00027561,5]
[364811559,1749249047534,-1252.94,0.00027561,5]
[364811560,1749249047544,-839.78,0.00027561,5]
[364811561,1749249047553,-480.0,0.00027561,5]
[364811563,1749249047563,-530.62445194,0.00027561,5]
[364811564,1749249047572,-597.47,0.00027561,5]
[364811565,1749249047581,-2287.47,0.00027561,5]
[364811566,1749249047591,-480.0,0.00027561,5]
[364811567,1749249047600,-1284.431354,0.00027561,5]
[364811568,1749249047609,-480.0,0.00027561,5]
[364811569,1749249047619,-480.0,0.00027561,5]
[364811570,1749249047628,-776.7,0.00027561,5]
[364811571,1749249047638,-1339.2,0.00027561,5]
[364811572,1749249047648,-1133.55,0.00027561,5]
[364811573,1749249047657,-560.8,0.00027561,5]
[364811574,1749249047667,-480.0,0.00027561,5]
[364811575,1749249047676,-634.45,0.00027561,5]
[364811576,1749249047685,-2020.92,0.00027561,5]
[364811577,1749249047694,-955.86,0.00027561,5]
[364811578,1749249047704,-561.21,0.00027561,5]
[364811579,1749249047713,-480.0,0.00027561,5]
[364811580,1749249047723,-2484.76,0.00027561,5]
[364811581,1749249047732,-5503.87396,0.00027561,2]
[364811582,1749249047741,-751.76,0.00027561,5]
[364811583,1749249047751,-1476.09,0.00027561,5]
[364811584,1749249047760,-767.245013,0.00027561,5]
[364811585,1749249047770,-1062.3,0.00027561,5]
[364811586,1749249047779,-684.25,0.00027561,5]
[364811587,1749249047789,-1006.98,0.00027561,5]
[364811588,1749249047798,-644.85,0.00027561,5]
[364811589,1749249047807,-480.0,0.00027561,5]
[364811590,1749249047817,-480.0,0.00027561,5]
[364811591,1749249047826,-747.15,0.00027561,5]
[364811592,1749249047835,-480.0,0.00027561,5]
[364811593,1749249047844,-2561.95,0.00027561,5]
[364811594,1749249047853,-480.0,0.00027561,5]
[364811595,1749249047863,-480.0,0.00027561,5]
[364811596,1749249047871,-1671.25,0.00027561,5]
[364811597,1749249047881,-9406.81,0.00027561,5]
[364811598,1749249047890,-480.0,0.00027561,5]
[364811599,1749249047899,-1049.08,0.00027561,5]
[364811600,1749249047908,-480.0,0.00027561,5]
[364811601,1749249047917,-1149.34,0.00027561,5]
[364811602,1749249047926,-480.0,0.00027561,5]
[364811603,1749249047936,-4644.09,0.00027561,5]
[364811604,1749249047946,-480.0,0.00027561,5]
[364811605,1749249047955,-480.0,0.00027561,5]
[364811606,1749249047964,-903.91,0.00027561,5]
[364811607,1749249047973,-264.16652672,0.00027561,5]
[364811608,1749249047982,-1214.33,0.00027561,5]
[364811609,1749249047992,-1366.78,0.00027561,5]
[364811610,1749249048001,-498.51,0.00027561,5]
[364811611,1749249048010,-480.0,0.00027561,5]
[364811612,1749249048019,-480.0,0.00027561,5]
[364811613,1749249048029,-782.13,0.00027561,5]
[364811614,1749249048038,-480.0,0.00027561,5]
[364811615,1749249048047,-919.51,0.00027561,5]
[364811616,1749249048057,-1040.43,0.00027561,5]
[364811617,1749249048066,-1015.0,0.00027561,5]
[364811618,1749249048075,-1599.2,0.00027561,5]
[364811619,1749249048085,-480.0,0.00027561,5]
[364811620,1749249048094,-480.0,0.00027561,5]
[364811621,1749249048103,-480.0,0.00027561,5]
[364811622,1749249048113,-3545.61,0.00027561,5]
[364811623,1749249048122,-480.0,0.00027561,5]
[364811624,1749249048132,-1468.39,0.00027561,5]
[364811625,1749249048142,-619.5,0.00027561,5]
[364811626,1749249048151,-978.02,0.00027561,5]
[364811627,1749249048161,-480.0,0.00027561,5]
[364811628,1749249048170,-576.36,0.00027561,5]
[364811629,1749249048180,-480.0,0.00027561,5]
[364811630,1749249048190,-480.0,0.00027561,5]
[364811631,1749249048199,-1451.75,0.00027561,5]
[364811632,1749249048208,-1249.34,0.00027561,5]
[364811633,1749249048217,-480.0,0.00027561,5]
[364811634,1749249048227,-1324.83,0.00027561,5]
[364811635,1749249048237,-2825.94,0.00027561,5]
[364811636,1749249048247,-519.06,0.00027561,5]
[364811637,1749249048256,-480.0,0.00027561,5]
[364811638,1749249048265,-876.83,0.00027561,5]
[364811639,1749249048274,-480.0,0.00027561,5]
[364811640,1749249048284,-9134.21,0.00027561,5]
[364811641,1749249048294,-480.0,0.00027561,5]
[364811642,1749249048304,-530.99,0.00027561,5]
[364811643,1749249048313,-13397.65,0.00027561,5]
[364811644,1749249048322,-753.87,0.00027561,5]
[364811645,1749249048331,-480.0,0.00027561,5]
[364811646,1749249048341,-494.07,0.00027561,5]
[364811647,1749249048350,-489.37,0.00027561,5]
[364811648,1749249048359,-480.0,0.00027561,5]
[364811649,1749249048368,-480.0,0.00027561,5]
[364811650,1749249048378,-550.68,0.00027561,5]
[364811651,1749249048388,-1086.28,0.00027561,5]
[364811652,1749249048397,-211.41374949,0.00027561,5]
[364811653,1749249048407,-480.0,0.00027561,5]
[364811654,1749249048416,-5872.23,0.00027561,5]
[364811655,1749249048425,-1297.03,0.00027561,5]
[364811656,1749249048434,-480.0,0.00027561,5]
[364811657,1749249048443,-467.95198328,0.00027561,5]
[364811658,1749249048453,-1071.02,0.00027561,5]
[364811659,1749249048463,-1434.25,0.00027561,5]
[364811660,1749249048472,-480.0,0.00027561,5]
[364811661,1749249048482,-805.27,0.00027561,5]
[364811662,1749249048491,-480.0,0.00027561,5]
[364811663,1749249048501,-480.0,0.00027561,5]
[364811664,1749249048510,-1698.93,0.00027561,5]
[364811665,1749249048519,-480.0,0.00027561,5]
[364811666,1749249048533,-10035.0,0.00027561,5]
[364811667,1749249048543,-480.0,0.00027561,5]
[364811668,1749249048552,-1364.04,0.00027561,5]
[364811669,1749249048562,-3370.61,0.00027561,5]
[364811670,1749249048573,-2768.53,0.00027561,5]
[364811671,1749249048582,-601.16,0.00027561,5]
[364811672,1749249048592,-480.0,0.00027561,5]
[364811673,1749249048602,-1472.37,0.00027561,5]
[364811674,1749249048612,-3042.72,0.00027561,5]
[364811675,1749249048621,-480.0,0.00027561,5]
[364811676,1749249048630,-480.0,0.00027561,5]
[364811677,1749249048639,-480.0,0.00027561,5]
[364811678,1749249048649,-489.54,0.00027561,5]
[364811679,1749249048658,-480.0,0.00027561,5]
[364811680,1749249048667,-480.0,0.00027561,5]
[364811681,1749249048677,-480.0,0.00027561,5]
[364811682,1749249048686,-517.23,0.00027561,5]
[364811683,1749249048696,-1392.9,0.00027561,5]
[364811684,1749249048705,-480.0,0.00027561,5]
[364811685,1749249048714,-793.54,0.00027561,5]
[364811686,1749249048724,-480.0,0.00027561,5]
[364811687,1749249048734,-480.0,0.00027561,5]
[364811688,1749249048743,-480.0,0.00027561,5]
[364811689,1749249048752,-480.0,0.00027561,5]
[364811690,1749249048762,-658.0,0.00027561,5]
[364811691,1749249048771,-480.0,0.00027561,5]
[364811692,1749249048781,-549.97,0.00027561,5]
[364811693,1749249048791,-480.0,0.00027561,5]
[364811694,1749249048800,-2962.92,0.00027561,5]
[364811695,1749249048810,-682.01,0.00027561,5]
[364811696,1749249048820,-1377.03,0.00027561,5]
[364811697,1749249048829,-463.24735372,0.00027561,5]
[364811698,1749249048839,-1477.44,0.00027561,5]
[364811699,1749249048848,-480.0,0.00027561,5]
[364811700,1749249048857,-1388.75,0.00027561,5]
[364811701,1749249048867,-532.97,0.00027561,5]
[364811702,1749249048876,-832.53,0.00027561,5]
[364811703,1749249048885,-480.0,0.00027561,5]
[364811704,1749249048894,-480.0,0.00027561,5]
[364811705,1749249048903,-1207.13,0.00027561,5]
[364811706,1749249048912,-4118.2,0.00027561,5]
[364811707,1749249048922,-956.85,0.00027561,5]
[364811708,1749249048931,-480.0,0.00027561,5]
[364811709,1749249048942,-2445.82,0.00027561,5]
[364811710,1749249048952,-1102.03,0.00027561,5]
[364811711,1749249048962,-1097.1,0.00027561,5]
[364811712,1749249048972,-480.0,0.00027561,5]
[364811713,1749249048981,-3539.2,0.00027561,5]
[364811714,1749249048990,-480.0,0.00027561,5]
[364811715,1749249049000,-1807.67,0.00027561,5]
[364811716,1749249049010,-804.07,0.00027561,5]
[364811717,1749249049020,-561.75823326,0.00027561,5]
[364811718,1749249049030,-2612.22,0.00027561,5]
[364811719,1749249049040,-889.55,0.00027561,5]
[364811720,1749249049050,-480.0,0.00027561,5]
[364811721,1749249049059,-480.0,0.00027561,5]
[364811722,1749249049069,-480.7,0.00027561,5]
[364811723,1749249049079,-497.3887721,0.00027561,5]
[364811724,1749249049089,-480.0,0.00027561,5]
[364811725,1749249049099,-2341.98,0.00027561,5]
[364811726,1749249049109,-545.98,0.00027561,5]
[364811727,1749249049119,-480.0,0.00027561,5]
[364811728,1749249049129,-569.07,0.00027561,5]
[364811729,1749249049139,-4003.64,0.00027561,5]
[364811730,1749249049148,-5914.05,0.00027561,5]
[364811731,1749249049158,-480.0,0.00027561,2]
[364811732,1749249049168,-480.0,0.00027561,5]
[364811733,1749249049178,-1337.49,0.00027561,5]
[364811734,1749249049189,-829.99,0.00027561,5]
[364811735,1749249049199,-480.0,0.00027561,5]
[364811736,1749249049208,-480.0,0.00027561,5]
[364811737,1749249049219,-480.0,0.00027561,5]
[364811738,1749249049228,-1525.61,0.00027561,5]
[364811739,1749249049238,-770.94,0.00027561,5]
[364811740,1749249049248,-480.0,0.00027561,2]
[364811741,1749249049258,-794.19,0.00027561,5]
[364811742,1749249049269,-2791.74,0.00027561,5]
[364811743,1749249049279,-850.62,0.00027561,5]
[364811744,1749249049289,-1521.49,0.00027561,5]
[364811745,1749249049300,-1313.26,0.00027561,5]
[364811746,1749249049310,-620.14,0.00027561,5]
[364811747,1749249049321,-480.0,0.00027561,5]
[364811748,1749249049331,-480.0,0.00027561,5]
[364811749,1749249049342,-812.48,0.00027561,5]
[364811750,1749249049352,-480.0,0.00027561,5]
[364811751,1749249049362,-682.0,0.00027561,5]
[364811752,1749249049372,-555.67,0.00027561,5]
[364811753,1749249049383,-480.0,0.00027561,5]
[364811754,1749249049393,-1027.0,0.00027561,5]
[364811755,1749249049403,-879.45,0.00027561,5]
[364811756,1749249049414,-1000.0,0.00027561,5]
[364811757,1749249049424,-1454.01,0.00027561,5]
[364811758,1749249049434,-480.0,0.00027561,5]
[364811759,1749249049444,-20188.6960304,0.00027564,2]
[364811760,1749249049455,-2329.971896,0.00027564,2]
[364811761,1749249049464,-292.6562446,0.00027564,2]
[364811762,1749249049474,-500.0,0.00027573,5]
[364811763,1749249049484,-500.0,0.00027573,5]
[364811764,1749249049493,-173.22715546,0.00027573,5]
[364811765,1749249049503,-500.0,0.00027573,5]
[364811766,1749249049513,-409.80880066,0.00027573,5]
[364811767,1749249049522,-500.0,0.00027573,5]
[364811768,1749249049537,-500.0,0.00027573,5]
[364811769,1749249049546,-500.0,0.00027573,5]
[364811770,1749249049555,-305.56,0.00027583,2]
[364811771,1749249049564,-200.0,0.000276,2]
[364811772,1749249049574,-150.0,0.00027617,2]
[364811773,1749249049584,-855.27814366,0.00027626,2]
[364811774,1749249049594,-183.6666071,0.00027626,2]
[364811775,1749249049605,-2124.02250214,0.00027642,2]
[364811776,1749249049614,-1059.36114794,0.00027655,2]
[364811777,1749249049623,-1061.43330483,0.00027655,2]
[364811778,1749249049633,-1123.02331667,0.00027655,2]
[364811779,1749249049643,-1102.27779022,0.00027655,2]
[364811780,1749249049653,-351.6690172,0.00027659,17]
[364811781,1749249049662,-1000.0,0.000277,2]
[364811782,1749249049671,-150.0,0.00027708,2]
[364811783,1749249049681,-655.51698818,0.00027716,2]
[364811784,1749249049690,-9499.96481456,0.00027725,2]
[364811785,1749249049699,-500.01360903,0.00027725,5]
[364811786,1749249049709,-480.0,0.00027726,5]
[364811787,1749249049719,-385.00256208,0.00027726,5]
[364811788,1749249049728,-480.0,0.00027726,5]
[364811789,1749249049738,-1959.661055,0.00027726,5]
[364811790,1749249049748,-480.0,0.00027726,5]
[364811791,1749249049758,-2212.720802,0.00027726,5]
[364811792,1749249049769,-480.0,0.00027726,5]
[364811793,1749249049778,-480.0,0.00027726,5]
[364811794,1749249049790,-678.27,0.00027726,5]
[364811795,1749249049799,-480.0,0.00027726,5]
[364811796,1749249049810,-480.0,0.00027726,5]
[364811797,1749249049819,-480.0,0.00027726,5]
[364811798,1749249049829,-480.0,0.00027726,5]
[364811799,1749249049840,-480.0,0.00027726,5]
[364811800,1749249049851,-512.9,0.00027726,5]
[364811801,1749249049862,-480.0,0.00027726,5]
[364811802,1749249049872,-480.0,0.00027726,5]
[364811803,1749249049884,-480.0,0.00027726,5]
[364811804,1749249049893,-480.0,0.00027726,5]
[364811805,1749249049903,-480.0,0.00027726,5]
[364811806,1749249049911,-480.0,0.00027726,5]
[364811807,1749249049921,-273.38097213,0.00027726,30]
[364811808,1749249049931,-529.84,0.00027726,5]
[364811809,1749249049940,-249.09506857,0.00027726,5]
[364811810,1749249049950,-480.0,0.00027726,5]
[364811811,1749249049960,-480.0,0.00027726,5]
[364811812,1749249049971,-480.0,0.00027726,5]
[364811813,1749249049982,-480.0,0.00027726,5]
[364811814,1749249049992,-606.23,0.00027726,5]
[364811815,1749249050001,-480.0,0.00027726,5]
[364811816,1749249050011,-480.0,0.00027726,5]
[364811817,1749249050021,-677.96,0.00027726,5]
[364811818,1749249050030,-480.0,0.00027726,5]
[364811819,1749249050040,-480.0,0.00027726,5]
[364811820,1749249050051,-480.0,0.00027726,5]
[364811821,1749249050062,-830.71,0.00027726,5]
[364811822,1749249050073,-480.0,0.00027726,5]
[364811823,1749249050082,-480.0,0.00027726,5]
[364811824,1749249050092,-710.66,0.00027726,5]
[364811825,1749249050103,-480.0,0.00027726,5]
[364811826,1749249050113,-480.0,0.00027726,5]
[364811827,1749249050122,-247.793539,0.00027726,5]
[364811828,1749249050132,-480.0,0.00027726,5]
[364811829,1749249050144,-480.0,0.00027726,5]
[364811830,1749249050154,-559.5,0.00027726,5]
[364811831,1749249050164,-480.0,0.00027726,5]
[364811832,1749249050174,-480.0,0.00027726,5]
[364811833,1749249050183,-480.0,0.00027726,5]
[364811834,1749249050193,-480.0,0.00027726,5]
[364811835,1749249050203,-549.49,0.00027726,5]
[364811836,1749249050213,-1076.21,0.00027726,5]
[364811837,1749249050223,-480.0,0.00027726,5]
[364811838,1749249050233,-480.0,0.00027726,5]
[364811839,1749249050242,-480.0,0.00027726,5]
[364811840,1749249050252,-527.39,0.00027726,5]
[364811841,1749249050262,-480.0,0.00027726,5]
[364811842,1749249050272,-480.0,0.00027726,5]
[364811843,1749249050282,-162.384994,0.00027726,5]
[364811844,1749249050292,-555.9,0.00027726,5]
[364811845,1749249050301,-655.43,0.00027726,5]
[364811846,1749249050311,-480.0,0.00027726,5]
[364811847,1749249050320,-1040.33,0.00027726,5]
[364811848,1749249050330,-480.0,0.00027726,5]
[364811849,1749249050340,-480.0,0.00027726,5]
[364811850,1749249050350,-177.574558,0.00027726,5]
[364811851,1749249050359,-480.0,0.00027726,5]
[364811852,1749249050369,-480.0,0.00027726,5]
[364811853,1749249050380,-480.0,0.00027726,5]
[364811854,1749249050390,-480.0,0.00027726,5]
[364811855,1749249050399,-480.0,0.00027726,5]
[364811856,1749249050409,-480.0,0.00027726,5]
[364811857,1749249050419,-556.96,0.00027726,5]
[364811858,1749249050428,-480.0,0.00027726,5]
[364811859,1749249050438,-480.0,0.00027726,5]
[364811860,1749249050448,-499.5,0.00027726,5]
[364811861,1749249050457,-157.91056,0.00027726,5]
[364811862,1749249050467,-539.01,0.00027726,5]
[364811863,1749249050477,-480.0,0.00027726,5]